[Event "GrandPrix_29.05"]
[Site "Chess.com"]
[Date "2020.05.29"]
[Round "2"]
[White "yamalchess"]
[Black "MilanovicDan"]
[Result "1-0"]
[WhiteElo "2407"]
[BlackElo "2464"]
[TimeControl "600+2"]
[EndTime "9:58:31 PDT"]
[Termination "yamalchess won by resignation"]

1. d4 {[%clk 0:10:01.7]} 1... Nf6 {[%clk 0:09:59.9]} 2. c4 {[%clk 0:10:02.6]}
2... c5 {[%clk 0:10:00]} 3. d5 {[%clk 0:10:01.6]} 3... b5 {[%clk 0:10:00.2]} 4.
cxb5 {[%clk 0:10:00.4]} 4... a6 {[%clk 0:10:00.3]} 5. bxa6 {[%clk 0:09:59.3]}
5... g6 {[%clk 0:10:00.3]} 6. g3 {[%clk 0:09:59.5]} 6... Bg7 {[%clk 0:09:53]} 7.
Nh3 {[%clk 0:09:59.8]} 7... d6 {[%clk 0:09:02.8]} 8. Nf4 {[%clk 0:09:50.2]} 8...
O-O {[%clk 0:08:59]} 9. h4 {[%clk 0:09:49.8]} 9... h6 {[%clk 0:08:59.4]} 10. Bg2
{[%clk 0:09:49]} 10... Nbd7 {[%clk 0:08:52.7]} 11. Bd2 {[%clk 0:09:36.9]} 11...
Rxa6 {[%clk 0:08:20]} 12. Bc3 {[%clk 0:09:35.5]} 12... Bb7 {[%clk 0:08:20.9]}
13. Nd2 {[%clk 0:08:40.3]} 13... Nb6 {[%clk 0:08:10.2]} 14. e4 {[%clk
0:07:58.2]} 14... Na4 {[%clk 0:06:52.5]} 15. O-O {[%clk 0:07:29]} 15... Nxc3
{[%clk 0:06:43.4]} 16. bxc3 {[%clk 0:07:29]} 16... Nd7 {[%clk 0:06:44.4]} 17.
Qc2 {[%clk 0:07:22.1]} 17... Ra3 {[%clk 0:06:35.7]} 18. Qb2 {[%clk 0:07:11.8]}
18... Qa8 {[%clk 0:06:29.3]} 19. Rfc1 {[%clk 0:06:54.4]} 19... Rb8 {[%clk
0:06:29.1]} 20. Nb1 {[%clk 0:06:02.8]} 20... Ra4 {[%clk 0:05:43.3]} 21. Qc2
{[%clk 0:05:55.3]} 21... Qa5 {[%clk 0:05:06.9]} 22. Nd3 {[%clk 0:05:01.3]} 22...
Ra8 {[%clk 0:04:39.3]} 23. a3 {[%clk 0:05:00.5]} 23... Qc7 {[%clk 0:03:57.6]}
24. Nb2 {[%clk 0:04:58.5]} 24... R4a7 {[%clk 0:03:54.8]} 25. a4 {[%clk
0:04:53.3]} 25... c4 {[%clk 0:03:02.9]} 26. Na3 {[%clk 0:04:48.7]} 26... Ba6
{[%clk 0:02:57.1]} 27. Bf1 {[%clk 0:04:08.4]} 27... Ne5 {[%clk 0:02:43.9]} 28.
Be2 {[%clk 0:03:46.1]} 28... Rb8 {[%clk 0:01:56.7]} 29. Nb5 {[%clk 0:03:17.2]}
29... Bxb5 {[%clk 0:01:53.1]} 30. axb5 {[%clk 0:03:18.2]} 30... Rxa1 {[%clk
0:01:53.1]} 31. Rxa1 {[%clk 0:03:16]} 31... Rxb5 {[%clk 0:01:53.9]} 32. h5
{[%clk 0:02:47.9]} 32... g5 {[%clk 0:01:09.9]} 33. Ra8+ {[%clk 0:02:40.7]} 33...
Bf8 {[%clk 0:00:35.4]} 34. Ra4 {[%clk 0:01:54.1]} 34... Rc5 {[%clk 0:00:05.2]}
35. Qb1 {[%clk 0:01:51.3]} 35... Rb5 {[%clk 0:00:03.5]} 36. Qa2 {[%clk
0:01:49.9]} 36... g4 {[%clk 0:00:04.3]} 37. Nxc4 {[%clk 0:01:41.3]} 37... Nf3+
{[%clk 0:00:04.8]} 38. Kg2 {[%clk 0:01:37.3]} 38... Rb7 {[%clk 0:00:02.1]} 39.
Bxf3 {[%clk 0:01:33.4]} 39... gxf3+ {[%clk 0:00:02.3]} 40. Kxf3 {[%clk
0:01:34.2]} 40... Qd7 {[%clk 0:00:02.7]} 41. g4 {[%clk 0:01:16.5]} 41... Rc7
{[%clk 0:00:03.2]} 42. Qb3 {[%clk 0:01:13.7]} 42... e6 {[%clk 0:00:04.2]} 43.
Ne3 {[%clk 0:01:10.6]} 43... Kg7 {[%clk 0:00:04.9]} 44. c4 {[%clk 0:01:07.4]}
44... Be7 {[%clk 0:00:05.9]} 45. Rb4 {[%clk 0:01:00.8]} 45... Bf6 {[%clk
0:00:06.6]} 46. Rb8 {[%clk 0:00:57.1]} 46... Ra7 {[%clk 0:00:07.1]} 47. Qb5
{[%clk 0:00:55]} 47... Qe7 {[%clk 0:00:06.8]} 48. Qe8 {[%clk 0:00:53.7]} 48...
Qxe8 {[%clk 0:00:07.5]} 49. Rxe8 {[%clk 0:00:54.2]} 49... Be7 {[%clk 0:00:08.7]}
50. Ke2 {[%clk 0:00:43.7]} 50... Kf6 {[%clk 0:00:09.3]} 51. f4 {[%clk
0:00:43.4]} 51... Kg7 {[%clk 0:00:09.8]} 52. Kf3 {[%clk 0:00:42.2]} 52... Rb7
{[%clk 0:00:09.5]} 53. e5 {[%clk 0:00:42]} 53... dxe5 {[%clk 0:00:09]} 54. fxe5
{[%clk 0:00:42.8]} 54... Bg5 {[%clk 0:00:06.8]} 55. Nf5+ {[%clk 0:00:32.8]}
55... exf5 {[%clk 0:00:07]} 56. gxf5 {[%clk 0:00:33.9]} 56... Rb4 {[%clk
0:00:07.5]} 57. f6+ {[%clk 0:00:34.3]} 57... Kh7 {[%clk 0:00:08.5]} 58. Rf8
{[%clk 0:00:35]} 58... Rxc4 {[%clk 0:00:08.6]} 59. Rxf7+ {[%clk 0:00:36.2]}
59... Kg8 {[%clk 0:00:09.9]} 60. Rg7+ {[%clk 0:00:37.4]} 60... Kf8 {[%clk
0:00:11.2]} 61. d6 {[%clk 0:00:34]} 61... Rf4+ {[%clk 0:00:05.2]} 62. Kg2 {[%clk
0:00:30.4]} 62... Rd4 {[%clk 0:00:05.7]} 63. d7 {[%clk 0:00:29.8]} 63... Rd3
{[%clk 0:00:03.6]} 64. e6 {[%clk 0:00:27.2]} 64... Bxf6 {[%clk 0:00:03.6]} 65.
Rf7+ {[%clk 0:00:28.3]} 1-0

[Event "GrandPrix_29.05"]
[Site "Chess.com"]
[Date "2020.05.29"]
[Round "2"]
[White "VincentKeymer"]
[Black "klimkoj"]
[Result "1-0"]
[WhiteElo "2563"]
[BlackElo "2091"]
[TimeControl "600+2"]
[EndTime "9:58:33 PDT"]
[Termination "VincentKeymer won by resignation"]

1. Nf3 {[%clk 0:10:01.5]} 1... Nf6 {[%clk 0:09:59.8]} 2. c4 {[%clk 0:10:02]}
2... g6 {[%clk 0:09:57.4]} 3. g3 {[%clk 0:10:02.6]} 3... Bg7 {[%clk 0:09:57]} 4.
Bg2 {[%clk 0:10:04.1]} 4... O-O {[%clk 0:09:57]} 5. O-O {[%clk 0:10:04.7]} 5...
d6 {[%clk 0:09:57.8]} 6. d4 {[%clk 0:10:05.6]} 6... Nc6 {[%clk 0:09:58.4]} 7.
Nc3 {[%clk 0:10:06.9]} 7... a6 {[%clk 0:09:56.1]} 8. b3 {[%clk 0:10:07.2]} 8...
Bg4 {[%clk 0:09:56]} 9. Bb2 {[%clk 0:10:00.8]} 9... Nd7 {[%clk 0:09:48]} 10. e3
{[%clk 0:09:54.1]} 10... e5 {[%clk 0:09:47.4]} 11. d5 {[%clk 0:09:44.3]} 11...
Ne7 {[%clk 0:09:46.5]} 12. h3 {[%clk 0:09:39.7]} 12... Bxf3 {[%clk 0:09:45.6]}
13. Bxf3 {[%clk 0:09:40.7]} 13... f5 {[%clk 0:09:46]} 14. e4 {[%clk 0:09:33.5]}
14... Nf6 {[%clk 0:09:38.8]} 15. Qd3 {[%clk 0:09:24.2]} 15... Qd7 {[%clk
0:09:37.5]} 16. Bg2 {[%clk 0:09:11.4]} 16... f4 {[%clk 0:08:55.7]} 17. h4 {[%clk
0:08:35.7]} 17... Bh6 {[%clk 0:08:37.1]} 18. Ne2 {[%clk 0:08:28.2]} 18... Qg4
{[%clk 0:07:27.8]} 19. Qf3 {[%clk 0:07:59.5]} 19... fxg3 {[%clk 0:06:52.6]} 20.
fxg3 {[%clk 0:07:42.4]} 20... Qxf3 {[%clk 0:06:52.7]} 21. Bxf3 {[%clk
0:07:42.6]} 21... Be3+ {[%clk 0:06:52.7]} 22. Kg2 {[%clk 0:07:33.1]} 22... g5
{[%clk 0:06:53.8]} 23. hxg5 {[%clk 0:07:24.1]} 23... Bxg5 {[%clk 0:06:53.5]} 24.
c5 {[%clk 0:06:57.8]} 24... Ng6 {[%clk 0:05:59.6]} 25. Ba3 {[%clk 0:06:49.9]}
25... Rfd8 {[%clk 0:05:58.3]} 26. Nc3 {[%clk 0:06:32.6]} 26... b5 {[%clk
0:05:22.5]} 27. cxb6 {[%clk 0:06:07.6]} 27... cxb6 {[%clk 0:05:21.6]} 28. Bc1
{[%clk 0:06:08.8]} 28... Bxc1 {[%clk 0:05:11.7]} 29. Raxc1 {[%clk 0:06:08.8]}
29... b5 {[%clk 0:05:13]} 30. a4 {[%clk 0:05:40.1]} 30... bxa4 {[%clk 0:05:04]}
31. Nxa4 {[%clk 0:05:37.6]} 31... Rab8 {[%clk 0:05:04.5]} 32. Rc6 {[%clk
0:05:19.2]} 32... Rxb3 {[%clk 0:04:55.7]} 33. Bd1 {[%clk 0:05:11]} 33... Rb1
{[%clk 0:04:12.5]} 34. Rxf6 {[%clk 0:05:10.8]} 34... Rxd1 {[%clk 0:04:13]} 35.
Rfxd6 {[%clk 0:04:44.4]} 35... Rxd6 {[%clk 0:04:12.1]} 36. Rxd6 {[%clk
0:04:46.3]} 36... a5 {[%clk 0:03:27.5]} 37. Ra6 {[%clk 0:04:39.2]} 37... Rd4
{[%clk 0:03:22.2]} 38. Nc5 {[%clk 0:04:39]} 38... a4 {[%clk 0:03:14.5]} 39. Rxa4
{[%clk 0:04:25.6]} 39... Rxa4 {[%clk 0:03:12.9]} 40. Nxa4 {[%clk 0:04:27.5]}
40... Kf7 {[%clk 0:03:14]} 41. Nb6 {[%clk 0:04:25.5]} 41... Ke7 {[%clk
0:03:13.4]} 42. Nc4 {[%clk 0:04:23.8]} 42... Kf6 {[%clk 0:03:14.6]} 43. Kf3
{[%clk 0:04:23.4]} 43... Nf8 {[%clk 0:03:16]} 44. Nb6 {[%clk 0:04:16.3]} 44...
h5 {[%clk 0:03:03]} 45. Ke3 {[%clk 0:04:10]} 45... Ng6 {[%clk 0:02:49.8]} 46.
Kd3 {[%clk 0:04:04.5]} 46... Ke7 {[%clk 0:02:39.3]} 47. Kc4 {[%clk 0:03:57.2]}
47... Nf4 {[%clk 0:02:19.4]} 48. Kc5 {[%clk 0:02:17.3]} 48... Ne2 {[%clk
0:02:16.5]} 49. d6+ {[%clk 0:02:18.3]} 49... Kd8 {[%clk 0:02:17.5]} 50. Kd5
{[%clk 0:02:19.4]} 50... Nxg3 {[%clk 0:02:04.6]} 51. Kxe5 {[%clk 0:02:20.4]}
51... h4 {[%clk 0:01:38.2]} 52. Kf4 {[%clk 0:02:20.7]} 52... Nh5+ {[%clk
0:01:39]} 53. Kf3 {[%clk 0:02:16.2]} 53... Ng3 {[%clk 0:00:51.8]} 54. e5 {[%clk
0:02:07.2]} 54... Nf5 {[%clk 0:00:43.6]} 55. Kg4 {[%clk 0:01:53.8]} 55... Nd4
{[%clk 0:00:43.9]} 56. Nc4 {[%clk 0:01:46]} 56... Nf5 {[%clk 0:00:39.2]} 57. Nd2
{[%clk 0:01:26]} 57... Nd4 {[%clk 0:00:21.5]} 58. Ne4 {[%clk 0:01:04.6]} 58...
Kd7 {[%clk 0:00:18.2]} 59. Nc5+ {[%clk 0:01:03.7]} 59... Kc6 {[%clk 0:00:18.9]}
60. Nd3 {[%clk 0:01:02.8]} 60... Kd7 {[%clk 0:00:14.7]} 61. Nf4 {[%clk
0:00:51.5]} 61... Nc6 {[%clk 0:00:14.3]} 62. Kf5 {[%clk 0:00:52.7]} 62... Nd4+
{[%clk 0:00:13.8]} 63. Kf6 {[%clk 0:00:53.4]} 63... Nc6 {[%clk 0:00:10]} 64. Nh3
{[%clk 0:00:47.8]} 64... Nd4 {[%clk 0:00:10.7]} 65. Ng5 {[%clk 0:00:47.8]} 65...
Nc6 {[%clk 0:00:11.1]} 66. Kf5 {[%clk 0:00:45.2]} 66... Nd4+ {[%clk 0:00:11.5]}
67. Ke4 {[%clk 0:00:46.4]} 67... Nc6 {[%clk 0:00:08.9]} 68. Kd5 {[%clk
0:00:44.7]} 68... Nd8 {[%clk 0:00:10.3]} 69. e6+ {[%clk 0:00:39.1]} 69... Nxe6
{[%clk 0:00:10.9]} 70. Nxe6 {[%clk 0:00:40.1]} 70... h3 {[%clk 0:00:12.8]} 71.
Nc5+ {[%clk 0:00:41.2]} 71... Kd8 {[%clk 0:00:13.3]} 72. Ne4 {[%clk 0:00:42.3]}
72... h2 {[%clk 0:00:13.8]} 73. Nf2 {[%clk 0:00:43.3]} 1-0

[Event "GrandPrix_29.05"]
[Site "Chess.com"]
[Date "2020.05.29"]
[Round "2"]
[White "Shahinyan_ChessMood"]
[Black "BlackBoarder"]
[Result "1/2-1/2"]
[WhiteElo "2056"]
[BlackElo "2172"]
[TimeControl "600+2"]
[EndTime "9:58:33 PDT"]
[Termination "Game drawn - insufficient material"]

1. e4 {[%clk 0:10:01.9]} 1... e6 {[%clk 0:10:00.1]} 2. d4 {[%clk 0:09:52]} 2...
d5 {[%clk 0:09:59.4]} 3. Bd3 {[%clk 0:09:53.9]} 3... dxe4 {[%clk 0:10:00]} 4.
Bxe4 {[%clk 0:09:55.8]} 4... Nf6 {[%clk 0:10:00.9]} 5. Bf3 {[%clk 0:09:57.7]}
5... Bd6 {[%clk 0:09:59.3]} 6. Ne2 {[%clk 0:09:46.5]} 6... Nbd7 {[%clk
0:09:57.6]} 7. O-O {[%clk 0:09:38.6]} 7... e5 {[%clk 0:09:55.4]} 8. Nbc3 {[%clk
0:09:30.9]} 8... O-O {[%clk 0:09:52.3]} 9. Re1 {[%clk 0:09:21]} 9... exd4 {[%clk
0:09:11.9]} 10. Nxd4 {[%clk 0:09:18.8]} 10... Ne5 {[%clk 0:09:11.6]} 11. Bg5
{[%clk 0:09:01.3]} 11... h6 {[%clk 0:09:07.4]} 12. Bh4 {[%clk 0:08:58.5]} 12...
c6 {[%clk 0:08:42.2]} 13. Bxf6 {[%clk 0:06:52.5]} 13... Qxf6 {[%clk 0:08:33.1]}
14. Ne4 {[%clk 0:06:53.2]} 14... Qe7 {[%clk 0:07:27.8]} 15. Nxc6 {[%clk
0:06:14]} 15... Nxf3+ {[%clk 0:06:51.3]} 16. gxf3 {[%clk 0:06:10.9]} 16... Bxh2+
{[%clk 0:06:42.6]} 17. Kxh2 {[%clk 0:06:12.8]} 17... bxc6 {[%clk 0:05:50.3]} 18.
Qd6 {[%clk 0:06:14.7]} 18... Qh4+ {[%clk 0:04:02.5]} 19. Kg1 {[%clk 0:06:11.9]}
19... Bf5 {[%clk 0:03:31.7]} 20. Qg3 {[%clk 0:06:09.8]} 20... Qxg3+ {[%clk
0:03:07.7]} 21. fxg3 {[%clk 0:06:11.7]} 21... Rad8 {[%clk 0:03:08]} 22. Rad1
{[%clk 0:05:31.8]} 22... Bxe4 {[%clk 0:02:25.2]} 23. fxe4 {[%clk 0:05:05.8]}
23... Rfe8 {[%clk 0:02:17.5]} 24. Rxd8 {[%clk 0:04:47.2]} 24... Rxd8 {[%clk
0:02:17.2]} 25. Re2 {[%clk 0:04:49.1]} 25... Kf8 {[%clk 0:02:02.9]} 26. Kf2
{[%clk 0:04:38.8]} 26... Ke7 {[%clk 0:02:03.4]} 27. Ke3 {[%clk 0:04:36]} 27...
Ke6 {[%clk 0:01:58.6]} 28. Rh2 {[%clk 0:04:24]} 28... Rd1 {[%clk 0:01:42.1]} 29.
a4 {[%clk 0:04:15.2]} 29... Re1+ {[%clk 0:01:34.6]} 30. Kf3 {[%clk 0:04:13]}
30... f6 {[%clk 0:01:09.7]} 31. Rh5 {[%clk 0:04:02.7]} 31... Rc1 {[%clk
0:01:08.9]} 32. Rc5 {[%clk 0:03:53.9]} 32... Kd6 {[%clk 0:01:09.4]} 33. b4
{[%clk 0:03:55.4]} 33... Ra1 {[%clk 0:01:03.1]} 34. Ra5 {[%clk 0:03:53.6]} 34...
Rb1 {[%clk 0:00:43]} 35. Rxa7 {[%clk 0:03:20.4]} 35... Rxb4 {[%clk 0:00:43.2]}
36. a5 {[%clk 0:03:22]} 36... g5 {[%clk 0:00:29.1]} 37. a6 {[%clk 0:03:21.2]}
37... Ra4 {[%clk 0:00:24.9]} 38. Kg4 {[%clk 0:02:37.8]} 38... Rxe4+ {[%clk
0:00:05.9]} 39. Kf5 {[%clk 0:02:38.4]} 39... Re3 {[%clk 0:00:06.5]} 40. g4
{[%clk 0:02:27.6]} 40... Rf3+ {[%clk 0:00:07.1]} 41. Kg6 {[%clk 0:02:28.2]}
41... Rf4 {[%clk 0:00:08.4]} 42. Kh5 {[%clk 0:01:32.8]} 42... f5 {[%clk
0:00:08.2]} 43. Ra8 {[%clk 0:01:34.2]} 43... Kc7 {[%clk 0:00:06.9]} 44. a7
{[%clk 0:01:35.4]} 44... Kb7 {[%clk 0:00:07.7]} 45. Rf8 {[%clk 0:01:36.8]} 45...
Kxa7 {[%clk 0:00:06.7]} 46. Rxf5 {[%clk 0:01:33.7]} 46... Rc4 {[%clk 0:00:06.6]}
47. Rf2 {[%clk 0:01:35.3]} 47... Kb6 {[%clk 0:00:03.2]} 48. Rg2 {[%clk
0:01:36.3]} 48... Rc5 {[%clk 0:00:03.5]} 49. Kxh6 {[%clk 0:01:37.7]} 49... Re5
{[%clk 0:00:04.4]} 50. Kg6 {[%clk 0:01:36.8]} 50... Kc5 {[%clk 0:00:05.2]} 51.
Kf6 {[%clk 0:01:38.2]} 51... Rd5 {[%clk 0:00:04.9]} 52. Rf2 {[%clk 0:01:27.7]}
52... Kc4 {[%clk 0:00:06]} 53. Rf5 {[%clk 0:01:17.1]} 53... Rd2 {[%clk 0:00:07]}
54. Kxg5 {[%clk 0:01:13]} 54... Rxc2 {[%clk 0:00:08.3]} 55. Kf6 {[%clk
0:01:13.4]} 55... Ra2 {[%clk 0:00:03.1]} 56. g5 {[%clk 0:01:13.7]} 56... Ra8
{[%clk 0:00:04]} 57. g6 {[%clk 0:01:05.1]} 57... c5 {[%clk 0:00:05.4]} 58. g7
{[%clk 0:00:56.5]} 58... Kd4 {[%clk 0:00:06.4]} 59. Rg5 {[%clk 0:00:23.1]} 59...
c4 {[%clk 0:00:06.7]} 60. g8=Q {[%clk 0:00:21]} 60... Rxg8 {[%clk 0:00:07.2]}
61. Rxg8 {[%clk 0:00:22.9]} 61... c3 {[%clk 0:00:08.7]} 62. Rg2 {[%clk
0:00:21.5]} 62... Kd3 {[%clk 0:00:09.2]} 63. Ke5 {[%clk 0:00:22.9]} 63... c2
{[%clk 0:00:10.5]} 64. Rg3+ {[%clk 0:00:24.1]} 64... Kd2 {[%clk 0:00:11.4]} 65.
Rg2+ {[%clk 0:00:22.9]} 65... Kd3 {[%clk 0:00:12.7]} 66. Rxc2 {[%clk 0:00:21]}
66... Kxc2 {[%clk 0:00:13.8]} 1/2-1/2

[Event "GrandPrix_29.05"]
[Site "Chess.com"]
[Date "2020.05.29"]
[Round "2"]
[White "GrishaTheChamp"]
[Black "DaviD-GevorG"]
[Result "0-1"]
[WhiteElo "2197"]
[BlackElo "1809"]
[TimeControl "600+2"]
[EndTime "9:58:35 PDT"]
[Termination "DaviD-GevorG won by resignation"]

1. d4 {[%clk 0:09:59.5]} 1... Nf6 {[%clk 0:09:58.1]} 2. c4 {[%clk 0:09:54.9]}
2... g6 {[%clk 0:09:58.9]} 3. Nc3 {[%clk 0:09:54.6]} 3... Bg7 {[%clk 0:09:59.9]}
4. e4 {[%clk 0:09:52.6]} 4... d6 {[%clk 0:10:00.8]} 5. Nf3 {[%clk 0:09:53.9]}
5... O-O {[%clk 0:09:59.8]} 6. Be2 {[%clk 0:09:55.1]} 6... Nbd7 {[%clk
0:10:00.8]} 7. O-O {[%clk 0:09:54.8]} 7... e5 {[%clk 0:10:02]} 8. Re1 {[%clk
0:09:53.3]} 8... h6 {[%clk 0:09:41.7]} 9. Bf1 {[%clk 0:09:46.4]} 9... c6 {[%clk
0:09:33.5]} 10. h3 {[%clk 0:09:05.2]} 10... Kh7 {[%clk 0:08:51.3]} 11. Be3
{[%clk 0:09:04.1]} 11... Qe7 {[%clk 0:08:48]} 12. Qc2 {[%clk 0:08:59.1]} 12...
Nh5 {[%clk 0:08:29.1]} 13. g3 {[%clk 0:08:42.5]} 13... Nhf6 {[%clk 0:08:04.9]}
14. Bg2 {[%clk 0:08:41.1]} 14... Ne8 {[%clk 0:08:03.6]} 15. Rad1 {[%clk
0:08:39.9]} 15... Nc7 {[%clk 0:08:01.9]} 16. b4 {[%clk 0:08:22.2]} 16... exd4
{[%clk 0:07:37.2]} 17. Nxd4 {[%clk 0:08:14]} 17... Ne5 {[%clk 0:07:38.8]} 18.
Qe2 {[%clk 0:07:39.9]} 18... Ne6 {[%clk 0:06:50.1]} 19. f4 {[%clk 0:07:04.9]}
19... Nd7 {[%clk 0:06:48.6]} 20. Nb1 {[%clk 0:06:23]} 20... a5 {[%clk
0:05:28.1]} 21. bxa5 {[%clk 0:05:39.5]} 21... Nec5 {[%clk 0:04:16.6]} 22. Bf2
{[%clk 0:05:25.5]} 22... Rxa5 {[%clk 0:04:06.3]} 23. Nb3 {[%clk 0:05:21.7]}
23... Ra4 {[%clk 0:03:48.5]} 24. h4 {[%clk 0:03:17.5]} 24... h5 {[%clk
0:03:47.3]} 25. Nxc5 {[%clk 0:02:51.7]} 25... Nxc5 {[%clk 0:03:42.1]} 26. e5
{[%clk 0:02:46.3]} 26... dxe5 {[%clk 0:03:23.8]} 27. fxe5 {[%clk 0:02:19.9]}
27... Bg4 {[%clk 0:03:22.4]} 28. Bf3 {[%clk 0:02:09.9]} 28... Bxf3 {[%clk
0:03:17]} 29. Qxf3 {[%clk 0:02:11.8]} 29... Rxa2 {[%clk 0:01:56.5]} 30. Nc3
{[%clk 0:02:01.4]} 30... Ra3 {[%clk 0:01:45.5]} 31. Bd4 {[%clk 0:01:32.9]} 31...
Ne6 {[%clk 0:01:40.9]} 32. Bf2 {[%clk 0:00:44.4]} 32... Qb4 {[%clk 0:01:34.5]}
33. Rd3 {[%clk 0:00:37.9]} 33... Qxc4 {[%clk 0:01:28.4]} 34. Red1 {[%clk
0:00:37.5]} 34... Qg4 {[%clk 0:00:55.7]} 35. Qxg4 {[%clk 0:00:28.8]} 35... hxg4
{[%clk 0:00:56.6]} 36. Ne4 {[%clk 0:00:28.3]} 36... Rxd3 {[%clk 0:00:54.6]} 37.
Rxd3 {[%clk 0:00:30.2]} 37... Bxe5 {[%clk 0:00:49.1]} 38. Rb3 {[%clk 0:00:31.4]}
38... b5 {[%clk 0:00:46.9]} 39. Rb1 {[%clk 0:00:31.4]} 39... f5 {[%clk
0:00:40.3]} 40. Nd2 {[%clk 0:00:27.8]} 40... Kg7 {[%clk 0:00:33]} 41. Re1 {[%clk
0:00:26.3]} 41... Kf6 {[%clk 0:00:32]} 42. Nb3 {[%clk 0:00:25]} 42... Rd8 {[%clk
0:00:23.3]} 43. Rc1 {[%clk 0:00:25.8]} 43... Rd3 {[%clk 0:00:21]} 44. Na5 {[%clk
0:00:24.1]} 44... c5 {[%clk 0:00:11.8]} 45. Kg2 {[%clk 0:00:24.4]} 45... c4
{[%clk 0:00:12.1]} 46. Nc6 {[%clk 0:00:23.2]} 46... Bb2 {[%clk 0:00:09.1]} 47.
Rc2 {[%clk 0:00:23.7]} 47... c3 {[%clk 0:00:08.7]} 48. Be1 {[%clk 0:00:20.2]}
48... g5 {[%clk 0:00:06.1]} 49. hxg5+ {[%clk 0:00:13.5]} 49... Nxg5 {[%clk
0:00:06]} 50. Nb4 {[%clk 0:00:15.2]} 50... Rf3 {[%clk 0:00:05.4]} 51. Nd5+
{[%clk 0:00:15.1]} 51... Ke5 {[%clk 0:00:04.3]} 52. Nxc3 {[%clk 0:00:15.7]}
52... Bxc3 {[%clk 0:00:04.3]} 53. Bxc3+ {[%clk 0:00:17.6]} 53... Kd5 {[%clk
0:00:04.3]} 54. Bd2 {[%clk 0:00:18.6]} 54... Ne4 {[%clk 0:00:04.6]} 55. Bf4
{[%clk 0:00:20]} 55... b4 {[%clk 0:00:05]} 56. Rc1 {[%clk 0:00:18.2]} 56... Rc3
{[%clk 0:00:06]} 57. Rd1+ {[%clk 0:00:18.7]} 57... Kc4 {[%clk 0:00:07]} 58. Rd8
{[%clk 0:00:18.2]} 58... Rc2+ {[%clk 0:00:07.8]} 59. Kg1 {[%clk 0:00:18.1]}
59... b3 {[%clk 0:00:09.2]} 60. Rc8+ {[%clk 0:00:19.7]} 60... Kd3 {[%clk
0:00:10.6]} 61. Rd8+ {[%clk 0:00:17.9]} 61... Ke2 {[%clk 0:00:11.8]} 62. Rb8
{[%clk 0:00:17.9]} 62... b2 {[%clk 0:00:12.5]} 63. Kg2 {[%clk 0:00:19]} 63...
Nc3 {[%clk 0:00:12.7]} 64. Re8+ {[%clk 0:00:18.8]} 64... Kd3+ {[%clk 0:00:13.9]}
0-1

[Event "GrandPrix_29.05"]
[Site "Chess.com"]
[Date "2020.05.29"]
[Round "2"]
[White "Alexander_Moskalenko"]
[Black "maciek_92"]
[Result "1/2-1/2"]
[WhiteElo "2188"]
[BlackElo "2409"]
[TimeControl "600+2"]
[EndTime "9:58:38 PDT"]
[Termination "Game drawn by agreement"]

1. d4 {[%clk 0:09:54.9]} 1... Nf6 {[%clk 0:10:00.7]} 2. c4 {[%clk 0:09:25.5]}
2... e6 {[%clk 0:10:01.7]} 3. g3 {[%clk 0:09:25.3]} 3... c5 {[%clk 0:10:02.2]}
4. Nf3 {[%clk 0:09:19.7]} 4... cxd4 {[%clk 0:10:03.4]} 5. Nxd4 {[%clk
0:09:21.6]} 5... d5 {[%clk 0:10:04.7]} 6. Bg2 {[%clk 0:09:16.9]} 6... e5 {[%clk
0:10:06]} 7. Nb3 {[%clk 0:09:08.7]} 7... d4 {[%clk 0:10:07.2]} 8. O-O {[%clk
0:09:08.5]} 8... Nc6 {[%clk 0:09:55.3]} 9. e3 {[%clk 0:09:03.1]} 9... d3 {[%clk
0:09:31.6]} 10. Nc3 {[%clk 0:08:58.6]} 10... Be6 {[%clk 0:09:09.3]} 11. Nd2
{[%clk 0:08:58.7]} 11... h5 {[%clk 0:08:54.8]} 12. b3 {[%clk 0:08:58.1]} 12...
h4 {[%clk 0:08:54.9]} 13. Nde4 {[%clk 0:08:58.6]} 13... hxg3 {[%clk 0:08:55]}
14. fxg3 {[%clk 0:08:10.8]} 14... Nxe4 {[%clk 0:07:48.4]} 15. Bxe4 {[%clk
0:08:12.7]} 15... Qg5 {[%clk 0:07:41.2]} 16. Qxd3 {[%clk 0:08:04.8]} 16... Bc5
{[%clk 0:07:00.7]} 17. Qe2 {[%clk 0:07:29.2]} 17... O-O-O {[%clk 0:06:24.2]} 18.
Bxc6 {[%clk 0:07:26.1]} 18... bxc6 {[%clk 0:06:24]} 19. Ne4 {[%clk 0:07:27.5]}
19... Qe7 {[%clk 0:06:24.3]} 20. Nxc5 {[%clk 0:07:12.4]} 20... Qxc5 {[%clk
0:06:26.2]} 21. Bb2 {[%clk 0:07:09.6]} 21... f6 {[%clk 0:05:43.8]} 22. Rad1
{[%clk 0:06:56.7]} 22... e4 {[%clk 0:05:31.4]} 23. Rxd8+ {[%clk 0:06:50.6]}
23... Rxd8 {[%clk 0:05:33.3]} 24. Bd4 {[%clk 0:06:48.8]} 24... Qg5 {[%clk
0:04:47]} 25. b4 {[%clk 0:06:48.5]} 25... Bg4 {[%clk 0:04:26.9]} 26. Qc2 {[%clk
0:06:12.2]} 26... Bf3 {[%clk 0:04:18.8]} 27. Rxf3 {[%clk 0:03:49.2]} 27... exf3
{[%clk 0:04:20.7]} 28. Qe4 {[%clk 0:03:50.7]} 28... Kd7 {[%clk 0:04:08.4]} 29.
a4 {[%clk 0:03:32.2]} 29... a6 {[%clk 0:04:01.5]} 30. Qxf3 {[%clk 0:03:31.2]}
30... Rb8 {[%clk 0:03:53.5]} 31. Bc5 {[%clk 0:03:22.1]} 31... Qe5 {[%clk
0:03:35.3]} 32. Qg4+ {[%clk 0:03:21.3]} 32... f5 {[%clk 0:03:36.8]} 33. Qg6
{[%clk 0:03:15.5]} 33... Qf6 {[%clk 0:03:34.7]} 34. Qxf6 {[%clk 0:03:00.9]}
34... gxf6 {[%clk 0:03:36.6]} 35. Kf2 {[%clk 0:03:01]} 35... Re8 {[%clk
0:03:27.9]} 36. Bd4 {[%clk 0:02:45.9]} 36... Rb8 {[%clk 0:03:19.6]} 37. Bc5
{[%clk 0:02:45.6]} 37... Ke6 {[%clk 0:03:19.8]} 38. Kf3 {[%clk 0:02:44.1]} 38...
Rd8 {[%clk 0:03:09.3]} 39. Bd4 {[%clk 0:01:45.8]} 39... Rb8 {[%clk 0:03:04.4]}
40. Bc3 {[%clk 0:01:39]} 40... Rh8 {[%clk 0:02:32.4]} 41. h4 {[%clk 0:01:39]}
41... Rg8 {[%clk 0:02:13.5]} 42. Bd4 {[%clk 0:01:21.4]} 42... Rb8 {[%clk
0:02:12.1]} 43. Bc5 {[%clk 0:01:16.1]} 43... Ke5 {[%clk 0:02:06.8]} 44. a5
{[%clk 0:00:59.3]} 44... Rd8 {[%clk 0:01:44.1]} 45. Bd4+ {[%clk 0:00:55.1]}
45... Ke6 {[%clk 0:01:45.5]} 46. Kf4 {[%clk 0:00:42.5]} 46... Rb8 {[%clk
0:01:40.7]} 47. Bc5 {[%clk 0:00:39.4]} 47... Rg8 {[%clk 0:01:40.1]} 48. Kf3
{[%clk 0:00:37.6]} 48... Rb8 {[%clk 0:01:40.6]} 49. e4 {[%clk 0:00:36.8]} 49...
Ke5 {[%clk 0:01:32.4]} 50. exf5 {[%clk 0:00:36.5]} 50... Kxf5 {[%clk 0:01:34.3]}
51. g4+ {[%clk 0:00:33.3]} 51... Ke5 {[%clk 0:01:35.2]} 52. h5 {[%clk
0:00:17.8]} 52... Rh8 {[%clk 0:01:30.3]} 53. Ke3 {[%clk 0:00:16.6]} 53... Rg8
{[%clk 0:01:30.8]} 54. Bd4+ {[%clk 0:00:17.5]} 54... Ke6 {[%clk 0:01:30.1]} 55.
Kf4 {[%clk 0:00:19.4]} 55... Rd8 {[%clk 0:01:25.3]} 56. Ke4 {[%clk 0:00:20.2]}
56... Rg8 {[%clk 0:01:20]} 57. Kf4 {[%clk 0:00:18.5]} 57... Rd8 {[%clk
0:01:21.4]} 58. Be3 {[%clk 0:00:16.8]} 58... Rd1 {[%clk 0:01:16.2]} 59. h6
{[%clk 0:00:15.9]} 59... Kf7 {[%clk 0:01:03.8]} 60. g5 {[%clk 0:00:13.7]} 60...
fxg5+ {[%clk 0:00:59.7]} 61. Kxg5 {[%clk 0:00:15.6]} 61... Rd3 {[%clk
0:00:58.3]} 62. Kf4 {[%clk 0:00:13.7]} 62... Rb3 {[%clk 0:00:56.4]} 63. Bc5
{[%clk 0:00:14.8]} 63... Rh3 {[%clk 0:00:38.8]} 64. Ke5 {[%clk 0:00:13.8]} 64...
Rxh6 {[%clk 0:00:38.5]} 65. Be3 {[%clk 0:00:14.8]} 65... Rh4 {[%clk 0:00:25.5]}
66. Kd6 {[%clk 0:00:13.8]} 1/2-1/2